Cogmind - Beta 15 @@@ ROGUE MODE // 2025.06.29 @ 16:49:35 Player: Demo Result: Destroyed by G-34 Mercenary with Small Laser Performance ------------- Evolutions (0) 0 Regions Visited (2) 400 Robots Destroyed (31) 155 Value Destroyed (693) 693 Prototype IDs (0) 0 Alien Tech Used (0) 0 Bonus (0) 0 TOTAL SCORE: 1248 Bonus ------- None Cogmind --------- Core Integrity 0/250 Matter 269/300 Energy 250/250 System Corruption 0% Temperature Cool (6) Movement Treading (320) Ox2 Location -10/Mines Parts ------- > --- POWER (1) -------- Ion Engine > --- PROPULSION (2) --- Light Treads Wheel > --- UTILITY (2) ------ Heat Sink High-capacity Storage Unit > --- WEAPON (2) ------- Small Laser Light Cannon > --- INVENTORY (20) --- Light Nuclear Core Light Nuclear Core Light Treads Light Treads Wheel Wheel Improved Heat Sink High-capacity Storage Unit High-capacity Matter Pod (145) Transport Network Coupler Tractor Beam Light Assault Rifle Light Cannon Explosive Trap Peak State ------------ > --- POWER ------------ Ion Engine > --- PROPULSION ------- Light Treads Wheel > --- UTILITY ---------- Heat Sink High-capacity Storage Unit > --- WEAPON ----------- Beam Cannon Assault Rifle > --- INVENTORY -------- Light Nuclear Core Light Treads Light Treads Wheel Wheel Improved Heat Sink Medium Storage Unit High-capacity Storage Unit Small Matter Pod Small Matter Pod Small Matter Pod High-capacity Matter Pod Transport Network Coupler Tractor Beam Light Cannon Light Cannon [Rating: 9] Favorites ----------- Power Ion Engine Engine Ion Engine Propulsion Light Treads Treads Light Treads Wheel Compact Wheel Utility High-capacity Storage Unit Device Heat Sink Storage High-capacity Storage Unit Weapon Assault Rifle Energy Gun Small Laser Energy Cannon Beam Cannon Ballistic Gun Assault Rifle Ballistic Cannon Light Cannon Build | -11 -10 -10 ------- Run | Yrd Mat Min Slots Evolved . | . . . Power . | . . . Propulsion . | . . . Utility . | . . . Weapon . | . . . Parts Attached 19 | 7 11 1 Power 2 | . 2 . Engine 2 | . 2 . Core . | . . . Reactor . | . . . Propulsion 6 | 3 3 . Treads 3 | 1 2 . Leg . | . . . Wheel 3 | 2 1 . Hover . | . . . Flight . | . . . Utility 5 | 2 3 . Device 2 | 1 1 . Storage 3 | 1 2 . Processor . | . . . Hackware . | . . . Protection . | . . . Artifact . | . . . Weapon 6 | 2 3 1 Energy Gun 1 | . . 1 Energy Cannon 1 | . 1 . Ballistic Gun 2 | 2 . . Ballistic Cannon 2 | . 2 . Launcher . | . . . Special Weapon . | . . . Impact Weapon . | . . . Slashing Weapon . | . . . Piercing Weapon . | . . . Special Melee Weapon . | . . . Unidentified Prototypes . | . . . Parts Lost 5 | . 4 1 Power . | . . . Propulsion 1 | . 1 . Utility 1 | . 1 . Weapon 3 | . 2 1 Highest Loss Streak 2 | . 2 1 To Critical Strikes . | . . . Average Backups 10 | 1 10 14 Power 1 | . 1 2 Propulsion 3 | 1 3 4 Utility 4 | . 4 6 Weapon 1 | . 1 1 Tool/Special . | . . . Unused Backups 24 | . 7 17 Power 4 | . 2 2 Propulsion 6 | . 3 3 Utility 11 | . . 11 Weapon 3 | . 2 1 Tool/Special . | . . . Average Slot Usage (%) 92 | . 88 99 Engine 8 | . 5 14 Treads 14 | . 14 14 Wheel 13 | . 13 14 Device 12 | . 12 14 Storage 14 | . 14 14 Energy Gun 1 | . . 2 Energy Cannon 7 | . 5 10 Ballistic Gun 12 | . 20 . Ballistic Cannon 6 | . 2 14 Peak Build Rating 9 | 6 9 9 Average Rating 7 | 4 6 8 On Entrance 5 | . 6 9 Naked Turns . | . . . Heaviest Build 52 | 9 52 52 Greatest Support 16 | 16 16 10 Greatest Overweight (x) 5 | 2 5 5 Average Overweight (x) 2 | . 1 4 Largest Inventory Capacity 20 | 8 20 20 Average Capacity 17 | 7 17 20 Most Carried 20 | 3 19 20 Average Carried 11 | 1 10 16 Final Capacity 20 | 8 20 20 Final Carried 19 | 3 19 14 Class Distribution -------------------- 63% | Mutant 36% | Scavenger-Mutant Dominant Class ---------------- Mutant | -10/Materials Scavenger-Mutant | -10/Mines Resources | -11 -10 -10 ----------- Run | Yrd Mat Min Matter Collected 1084 | 374 486 224 Remotely . | . . . Salvage Created 1100 | 185 770 145 Parts 66 | 11 46 9 Haulers Intercepted 2 | . 2 . Recyclers Shooed 3 | 2 . 1 Parts Field Recycled . | . . . Retrieved Matter . | . . . Parts Self-Destructed . | . . . Prevented . | . . . Kills | -11 -10 -10 ------- Run | Yrd Mat Min Combat Hostiles Destroyed 19 | . 15 4 Guns 6 | . 5 1 Cannons 13 | . 10 3 Classes Destroyed 8 | 3 4 1 Worker 2 | 2 . . Builder 1 | . 1 . Tunneler 4 | 4 . . Hauler 2 | . 2 . Recycler 2 | 1 . 1 Operator 1 | . 1 . Swarmer 3 | . . 3 Grunt 16 | . 15 1 Best Kill Streak 6 | 4 6 3 Combat Bots Only 5 | . 5 3 Max Kills in Single Turn 1 | 1 1 1 Gunslinging . | . . . Exploded . | . . . Melee . | . . . Uniques/NPCs Destroyed . | . . . Combat | -11 -10 -10 -------- Run | Yrd Mat Min Hostile Shots Fired 132 | . 107 25 Missed 49 | . 41 8 Hits 83 | . 66 17 Projectile 83 | . 66 17 Critical Strikes 3 | . 2 1 Damage Taken 1005 | . 839 166 Core 260 | . 211 49 Absorbed by Shields . | . . . Core Remaining (%) 100 | 100 . . Volleys Fired 119 | 29 72 18 Largest 2 | 2 2 2 Hottest 90 | 40 90 90 Shots Fired 235 | 58 142 35 Gun 148 | 58 84 6 Cannon 87 | . 58 29 Launcher . | . . . Special . | . . . Kinetic 177 | 58 101 18 Thermal 58 | . 41 17 Explosive . | . . . Electromagnetic . | . . . Robot Hit Streak 17 | 6 17 7 Robot Miss Streak 5 | 4 5 3 Penetration Max . | . . . Secondary Targets . | . . . Shots Hit Robots 124 | 28 76 20 Core Hits 50 | 12 32 6 Critical Kills 2 | . 2 . Critical Parts Destroyed . | . . . Critical Strikes 3 | . 3 . Destroy 2 | . 2 . Blast 1 | . 1 . Melee Attacks . | . . . Impact . | . . . Slashing . | . . . Piercing . | . . . Sneak Attacks . | . . . Combat Hostiles . | . . . Follow-up Attacks . | . . . Damage Inflicted 1690 | 322 1055 313 Guns 869 | 322 493 54 Cannons 821 | . 562 259 Explosions . | . . . Melee . | . . . Ramming . | . . . Kinetic 1076 | 322 582 172 Thermal 614 | . 473 141 Explosive . | . . . Electromagnetic . | . . . Impact . | . . . Slashing . | . . . Piercing . | . . . Highest Corruption . | . . . Average Corruption . | . . . Corruption Purged . | . . . Corruption Blocked . | . . . Overload Shots . | . . . Overflow Damage 14 | . . 14 Projectiles 14 | . . 14 Explosions . | . . . Melee . | . . . Knockbacks 4 | . 4 . Impact . | . . . Kinetic 4 | . 4 . Secondary . | . . . Self-Inflicted Damage . | . . . Shots . | . . . Rammed . | . . . Targets Rammed . | . . . Kicked . | . . . Crushed . | . . . Highest Temperature 177 | . 177 2 Average Temperature 42 | . 43 2 Received Heat Transfer 528 | . 489 39 Siege Activations . | . . . Martial Activations . | . . . Shielding Activations . | . . . Robots Disrupted . | . . . Combat Hostiles . | . . . Robots Corrupted . | . . . Combat Hostiles . | . . . Parts Fried . | . . . Impact Corruptions . | . . . Robots Melted . | . . . Combat Hostiles . | . . . Parts Melted 1 | . 1 . Heat Transferred 1309 | . 999 310 Parts Sabotaged . | . . . Parts Stolen . | . . . Parts Stripped . | . . . Power Chain Reactions . | . . . Alert | -11 -10 -10 ------- Run | Yrd Mat Min Maximum Alert Level 1 | . 1 . Low Security (%) 88 | 100 80 100 Level 1 11 | . 19 . Level 2 . | . . . Level 3 . | . . . Level 4 . | . . . Level 5 . | . . . High Security . | . . . Max Security . | . . . Peak Influence 257 | 10 257 90 Initial 90 | . . 90 Average 51 | 1 75 28 Influence Increases 605 | 35 465 105 Destroy 0b10 Robot/C 380 | . 300 80 Destroy 0b10 Robot/NC 60 | 35 20 5 Destroy Leader 104 | . 84 20 Destroy Structure 1 | . 1 . Lose Combat Pursuer 60 | . 60 . Influence Decreases 567 | 35 234 298 Entered New Map 141 | . . 141 Time Decay 396 | 35 214 147 Lost Part 30 | . 20 10 Squads Dispatched 5 | . 5 . Investigation 3 | . 3 . Extermination . | . . . Reinforcement 2 | . 2 . Assault . | . . . Garrison . | . . . Intercept . | . . . Searches Triggered . | . . . Construction Impeded . | . . . Haulers Reinforced . | . . . Active Scanning Responses . | . . . Cargo Convoy Interrupts . | . . . Stealth | -11 -10 -10 --------- Run | Yrd Mat Min Distress Signals 3 | . 3 . Communications Jammed . | . . . Distress Signals . | . . . Times Spotted 33 | . 28 5 Peak Tracking Total 7 | . 7 3 Tactical Retreats 2 | . 2 . Traps | -11 -10 -10 ------- Run | Yrd Mat Min Traps Triggered 3 | . 3 . Indirectly . | . . . Trap Hack Attempts . | . . . Triggered . | . . . Disarmed . | . . . Reprogrammed . | . . . Reused 2 | . . 2 Traps Extracted . | . . . Installed 4 | . . 4 Triggered . | . . . Most Traps Carried 5 | . . 5 Machines | -11 -10 -10 ---------- Run | Yrd Mat Min Machines Disabled . | . . . Max in Single Turn . | . . . Machines Repaired . | . . . Machines Dismantled . | . . . Machines Sabotaged . | . . . Overloaded Fab Kills . | . . . Hacking | -11 -10 -10 --------- Run | Yrd Mat Min Machines Accessed 4 | . 4 . Terminals 4 | . 4 . Fabricators . | . . . Repair Stations . | . . . Recycling Units . | . . . Scanalyzers . | . . . Garrison Access . | . . . Total Hacks 12 | . 12 . Successful 4 | . 4 . Failed 8 | . 8 . Catastrophic 2 | . 2 . Database Lockouts . | . . . Manual 12 | . 12 . Terminals 12 | . 12 . Fabricators . | . . . Repair Stations . | . . . Recycling Units . | . . . Scanalyzers . | . . . Garrison Access . | . . . Terminal Hacks . | . . . Fabricator Hacks . | . . . Repair Station Hacks . | . . . Recycling Unit Hacks . | . . . Scanalyzer . | . . . Garrison Access Hacks . | . . . Unauthorized Hacks 4 | . 4 . Terminals 4 | . 4 . Botnet 2 | . 2 . Disrupt 1 | . 1 . Operators 1 | . 1 . Fabricators . | . . . Repair Stations . | . . . Recycling Units . | . . . Scanalyzers . | . . . Garrison Access . | . . . Data Cores Recovered . | . . . Used . | . . . Hacking Detections 4 | . 4 . Full Trace Events 1 | . 1 . Feedback Events . | . . . Feedback Blocked . | . . . Robot Schematics Acquired . | . . . Robots Built . | . . . Authchips . | . . . Time . | . . . Total Robot Build Rating . | . . . Part Schematics Acquired . | . . . Parts Built . | . . . Authchips . | . . . Time . | . . . Total Part Build Rating . | . . . Parts Repaired . | . . . Time . | . . . Parts Recycled . | . . . Recycled Matter . | . . . Retrieved Matter . | . . . Retrieved Components . | . . . Parts Scanalyzed . | . . . Part Schematics Acquired . | . . . Parts Damaged . | . . . Bothacking | -11 -10 -10 ------------ Run | Yrd Mat Min Used RIF Installer . | . . . Robots Hacked . | . . . Non-combat . | . . . Combat . | . . . Robot Hacks Applied . | . . . Relay Couplers Released . | . . . Fabnet Peak Effective % . | . . . Robots Rewired . | . . . Allies Hacked . | . . . Hacks Repelled . | . . . Allies | -11 -10 -10 -------- Run | Yrd Mat Min Total Allies . | . . . Largest Group . | . . . Highest-Rated Group . | . . . Highest-Rated Ally . | . . . Total Orders . | . . . Ally Attacks . | . . . Total Damage . | . . . Kills . | . . . Allies Corrupted . | . . . Allies Melted . | . . . Intel | -11 -10 -10 ------- Run | Yrd Mat Min Active Infowar (turns) 526 | 3 523 . Seismic 526 | 3 523 . Robot Analysis Total . | . . . Derelict Logs Recovered 2 | . . 2 Drone Launches . | . . . Drone Recoveries . | . . . Exploration | -11 -10 -10 ------------- Run | Yrd Mat Min Turns Passed 1486 | 181 842 463 Spaces Moved 787 | 87 440 260 Core 9 | 9 . . Treads . | . . . Legs . | . . . Wheels 778 | 78 440 260 Hover . | . . . Flight . | . . . Fastest Speed 50 | 50 100 140 Average Speed 131 | 99 125 151 Slowest Speed 155 | 150 155 155 Overloaded Moves . | . . . Propulsion Burnouts . | . . . Robots Hopped . | . . . Potential Cave-ins . | . . . Cave-ins Triggered . | . . . Exploration Rate (%) 40 | 5 61 54 Regions Visited 2 Branch Regions 1 Pre-discovered Areas 1 | . . 1 Known Exits Taken . | . . . Unknown Exits Taken 2 | 1 1 . Scrap Searched . | . . . Spaces Dug . | . . . Terrain Destroyed . | . . . Melee . | . . . Projectile . | . . . AOE . | . . . Terrain Rammed . | . . . Walls Destroyed . | . . . Machines Disabled . | . . . Actions | -11 -10 -10 --------- Run | Yrd Mat Min Total 1019 | 126 593 300 Wait 27 | . 26 1 Move 785 | 86 439 260 Hop . | . . . Pick Up 39 | 3 30 6 Fast Attach 7 | 7 . . Attach 6 | . 5 1 Detach . | . . . Swap 10 | . 10 . Drop 22 | 1 11 10 Fire 119 | 29 72 18 Melee . | . . . Ram . | . . . Kick . | . . . Crush . | . . . Escape Stasis . | . . . Rewire . | . . . Trap 4 | . . 4 Miscellaneous . | . . . Route ------- -11/Scrapyard -10/Materials (discovered 3 exits: [*Mat x2] / [*Min]) -10/Mines History --------- Turn | Location | Event 51 | -11/Scrapyard | Discovered new exit (range 15) 182 | -11/Scrapyard | Entered Materials 277 | -10/Materials | Discovered new exit (range 16) 306 | -10/Materials | Build established: Mutant 481 | -10/Materials | Discovered new exit (range 11) 712 | -10/Materials | Core integrity fell below 50% 949 | -10/Materials | Core integrity fell below 20% 962 | -10/Materials | Discovered new exit (range 12) 1024 | -10/Materials | Entered Mines 1111 | -10/Mines | Found a hidden stash of uninstalled traps 1115 | -10/Mines | Met a Derelict bent on vengeance 1182 | -10/Mines | Assembled infested the area 1187 | -10/Mines | Assisted by a Guerilla fighting off Assembled 1233 | -10/Mines | Build established: Scavenger-Mutant 1345 | -10/Mines | Learned Materials machine intel 1487 | -10/Mines | Destroyed by G-34 Mercenary with Small Laser Last Messages --------------- 01323_ K-01 Serf cleans the Pressure Siphon. 01338_ Acquired derelict log, extracted data. World map updated: -10/Materials. 01345_ Acquired derelict log, extracted data. Data stored: Materials machine intel. 01348_ Dropped Explosive Trap. 01348_ Installed Explosive Trap. 01366_ Destroyed Lgt. Ion Engine. 01366_ Destroyed Flight Unit. 01366_ S-10 Pest destroyed. 01378_ Beam Cannon destroyed. 01384_ S-10 Pest destroyed. 01388_ Acquired Lgt. Assault Rifle. 01391_ Acquired 1 matter. 01392_ Acquired 32 matter. 01393_ Acquired 5 matter. 01415_ R-06 Scavenger collects Flight Unit. 01472_ Dropped Explosive Trap. 01472_ Installed Explosive Trap. 01482_ G-47 Trooper destroyed. Map ----- +----------------------------------------------------+ | ???????????????????????????????????????? | | ???????????????????????????????????????? | | ???????????????????????????????????????? | | ???????????????????????????????????????? | | ???????????????????????????????????????? | | ???????????????????????????????????????? | | ???????????????????????????????????????? | | ???????????????????????????????????????? | | ???????????????????????????????????????? | | ???????????????????????????????????????? | | ???????????????????????????????????????? | | ???????????????????????????????????????? | | ???????????????????????????????????????? | | ???????????????????????????????????????? | | ???????????????????????????????????????? | | ???????????????????????????????#???????? | | ??????????????????????????????? ???????? | | ??######?????????????????????? ##??????? | | ### ??????????????????????? ???????? | | ## #??????????????????????? ????????? | | ## #??####????????????????? ????????? | | #### ##??????????????? ?????????? | | ## ##?????????????? ??????????? | | ####?????????? #??????????? | | ###### """" ###########%#??????????? | | ##????# """" @%*#??????????? | | #????## """" g #??????????? | | ?????# ### #########??????????? | | ?????## ## ##?# #??????????????????? | | ??????# #?# ##??# #??????????????????? | | ??????# #??####### #??????????????????? | | ??????# #????# #??????????????????? | | ??????# #????# #########??????????????? | | ??????# #????# #??## ##?????????????? | | ??????# #????# #### #?????????????? | | ??????# #????# #?????????????? | | ??????# #????##### #?????????????? | | ??????# #????????## ##????????????? | | ??????# #?????????### ##???????????? | | ??????# #???????????## ##??????????? | | ??????# ####????????## ##?????????? | | ??????# #??????### ###???????? | | ??????##### #?????## ######??? | | ??????????# ####### ## ##?? | | ??????????# ^ #?? | | ??????????###### ### #?? | | ????# ###### #?## #?? | | ????# *=#??####### #?? | | ????# ########????????## ##?? | | ???????????????????????????## #####??? | +----------------------------------------------------+ Best States ------------- Heat Dissipation 35 Energy Generation 10 Energy Capacity 250 Matter Stores 300 Matter Capacity 300 Sight Range 16 Terrain Scan Density 10 Evasion (%) 40 Recoil Reduction 2 Item Schematics ----------------- None Robot Schematics ------------------ None Fabricated ------------ Nothing Repaired ---------- Nothing Alien Tech Used ----------------- None Achievements -------------- None Challenges ------------ None Game ------ Seed GreatSmallChainsaw Manual? 0 Play Time 00:08:05 Cumulative 315.7 hours Start 2025.06.29 @ 16:42:45 End 2025.06.29 @ 16:49:35 Sessions 1 Manual Loads 0 Difficulty Rogue Special Mode None Game No. 278 Rogue 278 Adventurer 0 Explorer 0 Win Type - Total 2 Types 1/1/0/0/0/0/0/0/0/0 Lore% 78 Gallery% 80 Achievement% 72 Wizard Run 0 Options --------- Layout 1 ASCII 0 Keyboard 0 Movement Numpad Keybinds 0 Fullscreen 1 Font 24/Smallcaps Map View 50x35 Zoom Use 0% Tactical HUD 1 Map Filters NONE Filters NONE Steam 1 RUN: 0c0017c3-45a2-483f-8821-6ee8c62643a8